Cogmind - Beta 17 @@@ ROGUE MODE // 2026.06.25 @ 20:35:04 Player: [THREAT] Result: Destroyed by Explosive Trap Performance ------------- Evolutions (0) 0 Regions Visited (1) 200 Robots Destroyed (24) 120 Value Destroyed (378) 378 Prototype IDs (0) 0 Alien Tech Used (0) 0 Bonus (0) 0 TOTAL SCORE: 698 Bonus ------- None Cogmind --------- Core Integrity 0/250 Matter 108/300 Energy 100/100 System Corruption 0% Temperature Cool (2) Movement Walking (190) Ox1 Location -10/Materials Parts ------- > --- POWER (1) -------- (None) > --- PROPULSION (2) --- Aluminum Leg > --- UTILITY (2) ------ Medium Storage Unit > --- WEAPON (2) ------- Hammer Hammer > --- INVENTORY (10) --- Medium Storage Unit Assault Rifle Assault Rifle Grenade Launcher Hammer Hammer Hammer Hammer Peak State ------------ > --- POWER ------------ Light Ion Engine > --- PROPULSION ------- Light Treads Light Treads > --- UTILITY ---------- Small Storage Unit Medium Storage Unit > --- WEAPON ----------- Assault Rifle Assault Rifle > --- INVENTORY -------- Aluminum Leg Aluminum Leg Grenade Launcher [Rating: 7] Favorites ----------- Power Light Ion Engine Engine Light Ion Engine Propulsion Light Treads Treads Light Treads Leg Aluminum Leg Utility Small Storage Unit Device Heat Sink Storage Small Storage Unit Weapon Assault Rifle Ballistic Gun Assault Rifle Launcher Grenade Launcher Impact Weapon Hammer Build | -11 -10 ------- Run | Yrd Mat Slots Evolved . | . . Power . | . . Propulsion . | . . Utility . | . . Weapon . | . . Parts Attached 17 | 8 9 Power 2 | 1 1 Engine 2 | 1 1 Core . | . . Reactor . | . . Propulsion 5 | 4 1 Treads 3 | 2 1 Leg 2 | 2 . Wheel . | . . Hover . | . . Flight . | . . Utility 3 | 1 2 Device 1 | . 1 Storage 2 | 1 1 Processor . | . . Hackware . | . . Protection . | . . Artifact . | . . Weapon 7 | 2 5 Energy Gun . | . . Energy Cannon . | . . Ballistic Gun 2 | 2 . Ballistic Cannon . | . . Launcher 1 | . 1 Special Weapon . | . . Impact Weapon 4 | . 4 Slashing Weapon . | . . Piercing Weapon . | . . Special Melee Weapon . | . . Unidentified Prototypes . | . . Parts Lost 3 | . 3 Power 1 | . 1 Propulsion 1 | . 1 Utility 1 | . 1 Weapon . | . . Highest Loss Streak 2 | . 2 To Critical Strikes . | . . Average Backups 3 | 2 3 Power . | . . Propulsion 1 | 1 1 Utility . | . . Weapon 1 | . 1 Tool/Special . | . . Unused Backups 3 | . 3 Power . | . . Propulsion . | . . Utility 1 | . 1 Weapon 2 | . 2 Tool/Special . | . . Average Slot Usage (%) 87 | . 87 Engine 13 | . 13 Treads 24 | . 24 Leg 3 | . 3 Device 3 | . 3 Storage 14 | . 14 Ballistic Gun 25 | . 25 Impact Weapon 2 | . 2 Peak Build Rating 7 | 6 7 Average Rating 6 | 4 6 On Entrance 3 | . 6 Avg Prop Armor Cover (%) . | . . Naked Turns . | . . Heaviest Build 19 | 12 19 Greatest Support 40 | 40 40 Greatest Overweight (x) . | . . Average Overweight (x) . | . . Largest Inventory Capacity 10 | 8 10 Average Capacity 8 | 7 8 Most Carried 8 | 5 8 Average Carried 3 | 2 3 Final Capacity 10 | 8 10 Final Carried 8 | 2 8 Class Distribution -------------------- 100% | Mutant Dominant Class ---------------- Mutant | -10/Materials Resources | -11 -10 ----------- Run | Yrd Mat Matter Collected 505 | 209 296 Remotely . | . . Salvage Created 420 | 54 366 Parts 48 | 4 44 Haulers Intercepted 1 | . 1 Recyclers Shooed 1 | . 1 Parts Field Recycled . | . . Retrieved Matter . | . . Parts Self-Destructed . | . . Prevented . | . . Parts Restored . | . . Kills | -11 -10 ------- Run | Yrd Mat Combat Hostiles Destroyed 15 | . 15 Melee 1 | . 1 Guns 5 | . 5 AOE 9 | . 9 Classes Destroyed 8 | 1 7 Worker 1 | . 1 Builder 2 | . 2 Tunneler 1 | . 1 Hauler 1 | . 1 Recycler 1 | 1 . Watcher 3 | . 3 Swarmer 9 | . 9 Grunt 6 | . 6 Best Kill Streak 5 | 1 5 Combat Bots Only 4 | . 4 Max Kills in Single Turn 4 | 1 4 Gunslinging . | . . Exploded 3 | . 3 Melee 1 | . 1 Uniques/NPCs Destroyed . | . . Combat | -11 -10 -------- Run | Yrd Mat Hostile Shots Fired 83 | . 83 Missed 11 | . 11 Hits 72 | . 72 Projectile 72 | . 72 Damage Taken 824 | . 824 Core 253 | . 253 Absorbed by Shields . | . . Regen/Repaired (Parts) 12 | . 12 Core Remaining (%) 100 | 100 . Volleys Fired 43 | 2 41 Largest 2 | 2 2 Hottest 40 | 40 40 Shots Fired 80 | 4 76 Gun 74 | 4 70 Cannon . | . . Launcher 6 | . 6 Special . | . . Kinetic 74 | 4 70 Thermal . | . . Explosive 6 | . 6 Electromagnetic . | . . Robot Hit Streak 11 | 3 11 Robot Miss Streak 5 | . 5 Penetration Max . | . . Secondary Targets . | . . Shots Hit Robots 58 | 3 55 Core Hits 33 | 1 32 Critical Kills . | . . Critical Parts Destroyed . | . . Critical Strikes . | . . Melee Attacks 8 | . 8 Impact 8 | . 8 Slashing . | . . Piercing . | . . Sneak Attacks . | . . Combat Hostiles . | . . Follow-up Attacks 1 | . 1 Damage Inflicted 1566 | 43 1523 Guns 655 | 43 612 Cannons . | . . Explosions 798 | . 798 Melee 113 | . 113 Ramming . | . . Kinetic 655 | 43 612 Thermal . | . . Explosive 798 | . 798 Electromagnetic . | . . Impact 113 | . 113 Slashing . | . . Piercing . | . . Highest Corruption . | . . Average Corruption . | . . Corruption Purged . | . . Corruption Blocked . | . . Overload Shots . | . . Overflow Damage 22 | . 22 Projectiles . | . . Explosions 10 | . 10 Melee 12 | . 12 Knockbacks . | . . Impact . | . . Kinetic . | . . Secondary . | . . Self-Inflicted Damage 83 | . 83 Shots 3 | . 3 Rammed . | . . Targets Rammed . | . . Kicked . | . . Crushed . | . . Highest Temperature 5 | . 5 Average Temperature 4 | . 4 Received Heat Transfer 240 | . 240 Siege Activations . | . . Martial Activations . | . . Shielding Activations . | . . Robots Disrupted . | . . Combat Hostiles . | . . Robots Corrupted . | . . Combat Hostiles . | . . Parts Fried . | . . Impact Corruptions 1 | . 1 Robots Melted . | . . Combat Hostiles . | . . Parts Melted . | . . Heat Transferred . | . . Parts Sabotaged . | . . Parts Stolen . | . . Parts Stripped . | . . Power Chain Reactions . | . . Alert | -11 -10 ------- Run | Yrd Mat Maximum Alert Level . | . . Low Security (%) 100 | 100 100 Level 1 . | . . Level 2 . | . . Level 3 . | . . Level 4 . | . . Level 5 . | . . High Security . | . . Max Security . | . . Peak Influence 163 | 5 163 Initial . | . . Average 29 | . 31 Influence Increases 469 | 5 464 Destroy 0b10 Robot/C 300 | . 300 Destroy 0b10 Robot/NC 45 | 5 40 Destroy Leader 68 | . 68 Successful Hack 3 | . 3 Disable Machine 15 | . 15 Destroy Structure 38 | . 38 Influence Decreases 332 | 5 327 Time Decay 198 | 5 193 Lost Part 30 | . 30 Purge Threat 104 | . 104 Squads Dispatched 4 | . 4 Investigation 2 | . 2 Extermination . | . . Reinforcement 2 | . 2 Assault . | . . Garrison . | . . Intercept . | . . Searches Triggered . | . . Construction Impeded . | . . Haulers Reinforced . | . . Active Scanning Responses . | . . Cargo Convoy Interrupts . | . . Stealth | -11 -10 --------- Run | Yrd Mat Distress Signals 2 | . 2 Communications Jammed . | . . Distress Signals . | . . Times Spotted 18 | . 18 Peak Tracking Total 4 | . 4 Tactical Retreats . | . . Traps | -11 -10 ------- Run | Yrd Mat Traps Triggered 2 | . 2 Indirectly . | . . Trap Hack Attempts . | . . Triggered . | . . Disarmed . | . . Reprogrammed . | . . Reused . | . . Traps Extracted . | . . Installed . | . . Triggered . | . . Machines | -11 -10 ---------- Run | Yrd Mat Machines Disabled 1 | . 1 Max in Single Turn 1 | . 1 Machines Repaired . | . . Machines Dismantled . | . . Machines Sabotaged . | . . Overloaded Fab Kills . | . . Hacking | -11 -10 --------- Run | Yrd Mat Machines Accessed 3 | . 3 Terminals 2 | . 2 Fabricators . | . . Repair Stations 1 | . 1 Recycling Units . | . . Scanalyzers . | . . Garrison Access . | . . Total Hacks 7 | . 7 Successful 5 | . 5 Failed 2 | . 2 Catastrophic . | . . Database Lockouts . | . . Manual . | . . Terminals 5 | . 5 Fabricators . | . . Repair Stations 2 | . 2 Recycling Units . | . . Scanalyzers . | . . Garrison Access . | . . Terminal Hacks 3 | . 3 Alert Level 1 | . 1 Unreport Threat 2 | . 2 Fabricator Hacks . | . . Repair Station Hacks 2 | . 2 Scan Component 1 | . 1 Repair 1 | . 1 Recycling Unit Hacks . | . . Scanalyzer . | . . Garrison Access Hacks . | . . Unauthorized Hacks . | . . Terminals . | . . Fabricators . | . . Repair Stations . | . . Recycling Units . | . . Scanalyzers . | . . Garrison Access . | . . Data Cores Recovered . | . . Used . | . . Hacking Detections 1 | . 1 Full Trace Events 1 | . 1 Feedback Events . | . . Feedback Blocked . | . . Robot Schematics Acquired . | . . Robots Built . | . . Authchips . | . . Time . | . . Total Robot Build Rating . | . . Part Schematics Acquired . | . . Parts Built . | . . Authchips . | . . Time . | . . Total Part Build Rating . | . . Part Studies Acquired . | . . Parts Repaired 1 | . 1 Time 26 | . 26 Parts Recycled . | . . Recycled Matter . | . . Retrieved Matter . | . . Retrieved Components . | . . Parts Scanalyzed . | . . Part Schematics Acquired . | . . Parts Damaged . | . . Bothacking | -11 -10 ------------ Run | Yrd Mat Used RIF Installer . | . . Robots Hacked . | . . Non-combat . | . . Combat . | . . Robot Hacks Applied . | . . Relay Couplers Released . | . . Fabnet Peak Effective % . | . . Robots Rewired . | . . Allies Hacked . | . . Hacks Repelled . | . . Allies | -11 -10 -------- Run | Yrd Mat Total Allies . | . . Largest Group . | . . Highest-Rated Group . | . . Highest-Rated Ally . | . . Total Orders . | . . Ally Attacks . | . . Total Damage . | . . Kills . | . . Allies Corrupted . | . . Allies Melted . | . . Intel | -11 -10 ------- Run | Yrd Mat Active Infowar (turns) . | . . Robot Analysis Total . | . . Derelict Logs Recovered . | . . Drone Launches . | . . Drone Recoveries . | . . Exploration | -11 -10 ------------- Run | Yrd Mat Turns Passed 1154 | 62 1092 Spaces Moved 374 | 35 339 Core 11 | 11 . Treads 294 | 17 277 Legs 69 | 7 62 Wheels . | . . Hover . | . . Flight . | . . Fastest Speed 50 | 50 120 Average Speed 149 | 117 152 Slowest Speed 160 | 160 160 Overloaded Moves . | . . Propulsion Burnouts . | . . Robots Hopped . | . . Potential Cave-ins . | . . Cave-ins Triggered . | . . Exploration Rate (%) 35 | 3 67 Regions Visited 1 Branch Regions . Pre-discovered Areas . | . . Known Exits Taken . | . . Unknown Exits Taken 1 | 1 . Scrap Searched . | . . Spaces Dug . | . . Terrain Destroyed 47 | . 47 Melee . | . . Projectile . | . . AOE 47 | . 47 Terrain Rammed . | . . Walls Destroyed . | . . Machines Disabled . | . . Actions | -11 -10 --------- Run | Yrd Mat Total 874 | 51 823 Wait 403 | . 403 Move 373 | 34 339 Hop . | . . Pick Up 20 | 7 13 Fast Attach 1 | 1 . Attach 10 | 5 5 Detach . | . . Swap 12 | 2 10 Drop 5 | . 5 Fire 43 | 2 41 Melee 7 | . 7 Ram . | . . Kick . | . . Crush . | . . Escape Stasis . | . . Rewire . | . . Trap . | . . Miscellaneous . | . . Route ------- -11/Scrapyard -10/Materials (discovered 3 exits: [*Mat] / [*Min x2]) History --------- Turn | Location | Event 6 | -11/Scrapyard | Discovered new exit (range 16) 63 | -11/Scrapyard | Entered Materials 311 | -10/Materials | Build established: Mutant 662 | -10/Materials | Repaired Lgt. Ion Engine 905 | -10/Materials | Discovered new exit (range 13) 950 | -10/Materials | Discovered new exit (range 6) 1048 | -10/Materials | Discovered new exit (range 12) 1120 | -10/Materials | Core integrity fell below 50% 1132 | -10/Materials | Core integrity fell below 20% 1155 | -10/Materials | Destroyed by Explosive Trap Last Messages --------------- R-06 Scavenger collects Wheel. U-05 Engineer lays Concrete. K-01 Serf collects debris. U-05 Engineer builds a Wall. U-05 Engineer lays Concrete. R-06 Scavenger collects Wheel. U-05 Engineer lays Concrete. K-01 Serf collects debris. U-05 Engineer lays Concrete. U-05 Engineer builds a Wall. U-05 Engineer lays Concrete. R-06 Scavenger collects Imp. Terrain Scanner. U-05 Engineer lays Concrete. U-05 Engineer builds a Door. R-06 Scavenger inserts Lgt. Ion Engine into recycling unit. Triggered Explosive Trap. An explosion rips through the floor. Aluminum Leg destroyed. Lgt. Ion Engine destroyed. Map ----- +----------------------------------------------------+ | #### ###### + #??# ?# #? | | ^ ##### #???# ### #? | | ^ #######+##### #???# #???# #? | | ^^ #????? "???# #???# #???# #? | | #### #????? "???# #???# #???# #? | | ???# #????| ??# #???#####+####??## #? | | ???# #???? != ??# ####### = ##### ## | | ???# #??? != ?# = | | ??## #??? != ?#= T | | ??# ############ | | ??# * ####### ##### ! | | #?# T !##?#######???# #### | | != !#???????????# #??# | | #?# ## ####### % !#???????????# #??# | | #####+#### ! #[ # !#?######????# #??# | | # #![ +! !# #?# #????# #??# | | # """"" # *!#= # !##?# |#?#### #??# | | # """"" # |# """ #=%=####??# #### # #???+ | | # """"" # # """ # #?????#% # # #???? | | # # # """ # #?????# ##### ####? | | # !# # # #?????# #? | | # " " # # # #?????# [ [ * #? | | # "R" + # ! ""# #?????# =*+ #? | | # """ ##### T"# #?????# ![ #? | | ##########???# ""# a####### # ![ #? | | #######??????# # @ "r" [[ #? | | # #?????####### "Y" #? | | # """" #???????????# """ +? | | # """" #???????????# ###################+## #? | | # """" #?????????# ?????????????????????? #? | | # #???????? ??????????????????????? | | # """" #?????? "?????????????????????????? | | # """" #????? ????????????????????????????? | | + """" #????? #### ??????????????????????????????? | | # #?????????#???????????????????????????????? | | # #?????????????????????????????????????????? | | # #?????????????????????????????????????????? | | # #?????????????????????????????????????????? | | ########?????????????????????????????????????????? | | #???????????????????????????????????????????? | | #???????????????????????????????????????????? | | #???????????????????????????????????????????? | | #???????????????????????????????????????????? | | """ #???????????????????????????????????????????? | | """ #???????????????????????????????????????????? | | """ #???????????????????????????????????????????? | | #???????????????????????????????????????????? | | ######???????????????????????????????????????????? | | ?????????????????????????????????????????????????? | | ?????????????????????????????????????????????????? | +----------------------------------------------------+ Best States ------------- Heat Dissipation 35 Energy Generation 10 Energy Capacity 125 Matter Stores 289 Matter Capacity 300 Sight Range 16 Terrain Scan Density 10 Evasion (%) 55 Recoil Reduction 2 Item Schematics ----------------- None Robot Schematics ------------------ None Fabricated ------------ Nothing Repaired ---------- Lgt. Ion Engine | 70% | -10/Materials Studied --------- None Alien Tech Used ----------------- None Achievements -------------- None Challenges ------------ None Game ------ Seed MultinovaKineticClaymores Manual? 0 Play Time 00:09:25 Cumulative 80.4 hours Start 2026.06.25 @ 20:29:52 End 2026.06.25 @ 20:35:04 Sessions 1 Manual Loads 0 Difficulty Rogue Special Mode None Game No. 58 Rogue 28 Adventurer 30 Explorer 0 Win Type - Total 1 Types 1/0/0/0/0/0/0/0/0/0 Lore% 29 Gallery% 33 Achievement% 34 Wizard Run 0 Options --------- Layout 2 ASCII 0 Keyboard 0 Movement Numpad Keybinds 0 Fullscreen 1 Font 16/SmallcapsGlow Map View 50x49 Zoom Use 14% Tactical HUD 0 Map Filters NONE Filters NONE Steam 1 RUN: edd07c75-4386-48a8-9162-b6ce403755bb